Cogmind - Beta 11.2 @@@ ROGUE MODE // 2022.12.24 @ 19:59:59 // Winter2022/Polymind Player: ILikeMonsters1890 Result: Destroyed by S-10 Pest with Light Assault Rifle Performance ------------- Evolutions (0) 0 Regions Visited (2) 400 Robots Destroyed (5) 25 Value Destroyed (74) 74 Prototype IDs (3) 60 Alien Tech Used (0) 0 Bonus (1020) 1020 TOTAL SCORE: 1269 Bonus ------- Polymind Skill 1020 Cogmind --------- Core Integrity 0/250 Matter 0/0 Energy 25/25 System Corruption 4% Temperature Warm (138) Movement Rolling (80) Location -10/Mines Parts ------- > --- POWER (1) -------- (None) > --- PROPULSION (2) --- Wheel Wheel > --- UTILITY (2) ------ Improved Terrain Scanner Seismic Detector > --- WEAPON (1) ------- (None) > --- INVENTORY (0) ---- (None) Peak State ------------ > --- POWER ------------ Light Nuclear Core > --- PROPULSION ------- Aluminum Leg Aluminum Leg > --- UTILITY ---------- Improved Heat Sink > --- WEAPON ----------- Particle Gun > --- INVENTORY -------- (None) [Rating: 10] Favorites ----------- Power Light Ion Engine Engine Light Ion Engine Power Core Light Nuclear Core Propulsion Aluminum Leg Leg Aluminum Leg Wheel Wheel Hover Unit Hover Unit Flight Unit Flight Unit Utility Improved Heat Sink Device Improved Heat Sink Processor Visual Processing Unit Weapon Particle Gun Energy Gun Particle Gun Ballistic Gun Light Assault Rifle Special Weapon Mining Laser Build | -11 -10 -10 ------- Run | Scr Mat Min Slots Evolved . | . . . Power . | . . . Propulsion . | . . . Utility . | . . . Weapon . | . . . Parts Attached . | . . . Power . | . . . Engine . | . . . Core . | . . . Reactor . | . . . Propulsion . | . . . Treads . | . . . Leg . | . . . Wheel . | . . . Hover . | . . . Flight . | . . . Utility . | . . . Device . | . . . Storage . | . . . Processor . | . . . Hackware . | . . . Protection . | . . . Artifact . | . . . Weapon . | . . . Energy Gun . | . . . Energy Cannon . | . . . Ballistic Gun . | . . . Ballistic Cannon . | . . . Launcher . | . . . Special Weapon . | . . . Impact Weapon . | . . . Slashing Weapon . | . . . Piercing Weapon . | . . . Special Melee Weapon . | . . . Unidentified Prototypes . | . . . Parts Lost 2 | . . 2 Power 1 | . . 1 Propulsion . | . . . Utility . | . . . Weapon 1 | . . 1 Highest Loss Streak 2 | . . 2 To Critical Strikes . | . . . Average Slot Usage (%) 99 | . 100 99 Engine 12 | . 19 8 Core 7 | . . 12 Leg 15 | . . 24 Wheel 8 | . 15 4 Hover 2 | . 6 . Flight 14 | . 18 12 Device 17 | . 17 16 Processor 2 | . 6 . Energy Gun 7 | . . 12 Ballistic Gun 7 | . 9 6 Special Weapon 3 | . 7 1 Naked Turns 4 | . 1 3 Heaviest Build 9 | 6 6 9 Greatest Support 20 | 20 20 20 Greatest Overweight (x) . | . . . Average Overweight (x) . | . . . Largest Inventory Capacity 1 | . . 1 Average Capacity . | . . . Most Carried . | . . . Average Carried . | . . . Final Capacity . | . . . Final Carried . | . . . Class Distribution -------------------- 39% | Grunt 28% | Swarmer 24% | Tunneler 5% | Watcher Dominant Class ---------------- Tunneler | -10/Materials Grunt | -10/Mines Resources | -11 -10 -10 ----------- Run | Scr Mat Min Matter Collected . | . . . Remotely . | . . . Salvage Created 87 | . . 87 Parts 7 | . 1 6 Haulers Intercepted . | . . . Recyclers Shooed . | . . . Parts Field Recycled . | . . . Retrieved Matter . | . . . Parts Self-Destructed . | . . . Prevented . | . . . Kills | -11 -10 -10 ------- Run | Scr Mat Min Combat Hostiles Destroyed 5 | . 1 4 Guns 5 | . 1 4 Classes Destroyed 2 | . 1 1 Swarmer 4 | . 1 3 Grunt 1 | . . 1 Best Kill Streak 2 | . 1 2 Combat Bots Only 2 | . 1 2 Max Kills in Single Turn 1 | . 1 1 Gunslinging . | . . . Exploded . | . . . Melee . | . . . Uniques/NPCs Destroyed . | . . . Combat | -11 -10 -10 -------- Run | Scr Mat Min Damage Taken 471 | . 74 397 Core 253 | . 29 224 Absorbed by Shields . | . . . Core Remaining (%) 100 | 100 . . Volleys Fired 21 | . 5 16 Largest 1 | . 1 1 Hottest 100 | . 20 100 Shots Fired 21 | . 5 16 Gun 19 | . 5 14 Cannon . | . . . Launcher . | . . . Special 2 | . . 2 Kinetic 14 | . 5 9 Thermal 7 | . . 7 Explosive . | . . . Electromagnetic . | . . . Robot Hit Streak 7 | . 3 7 Robot Miss Streak 2 | . 2 2 Penetration Max . | . . . Secondary Targets . | . . . Shots Hit Robots 15 | . 3 12 Core Hits 7 | . 1 6 Critical Kills . | . . . Critical Parts Destroyed . | . . . Critical Strikes 1 | . . 1 Burn 1 | . . 1 Melee Attacks . | . . . Impact . | . . . Slashing . | . . . Piercing . | . . . Sneak Attacks . | . . . Combat Hostiles . | . . . Follow-up Attacks . | . . . Damage Inflicted 195 | . 22 173 Guns 152 | . 22 130 Cannons . | . . . Explosions . | . . . Melee . | . . . Ramming 17 | . . 17 Kinetic 76 | . 22 54 Thermal 102 | . . 102 Explosive . | . . . Electromagnetic . | . . . Impact . | . . . Slashing . | . . . Piercing . | . . . Highest Corruption 4 | . . 4 Average Corruption 2 | . . 2 Corruption Purged . | . . . Corruption Blocked . | . . . Overload Shots . | . . . Overflow Damage . | . . . Projectiles . | . . . Explosions . | . . . Melee . | . . . Knockbacks . | . . . Impact . | . . . Kinetic . | . . . Secondary . | . . . Self-Inflicted Damage 7 | . . 7 Shots . | . . . Rammed 7 | . . 7 Targets Rammed 7 | . . 7 Kicked . | . . . Crushed . | . . . Highest Temperature 155 | . 11 155 Average Temperature 42 | . 9 46 Received Heat Transfer 51 | . . 51 Siege Activations . | . . . Robots Corrupted . | . . . Combat Hostiles . | . . . Parts Fried . | . . . Impact Corruptions . | . . . Robots Melted . | . . . Combat Hostiles . | . . . Parts Melted . | . . . Heat Transferred 309 | . . 309 Parts Sabotaged . | . . . Parts Stolen . | . . . Parts Stripped . | . . . Power Chain Reactions . | . . . Missiles Intercepted . | . . . Alert | -11 -10 -10 ------- Run | Scr Mat Min Peak Influence 146 | . 87 146 Initial 33 | . . 33 Average 82 | . 27 115 Maximum Alert Level . | . . . Low Security (%) 100 | 100 100 100 Level 1 . | . . . Level 2 . | . . . Level 3 . | . . . Level 4 . | . . . Level 5 . | . . . High Security . | . . . Max Security . | . . . Squads Dispatched 1 | . 1 . Investigation . | . . . Extermination . | . . . Reinforcement 1 | . 1 . Assault . | . . . Garrison . | . . . Intercept . | . . . Searches Triggered . | . . . Construction Impeded . | . . . Haulers Reinforced . | . . . Active Scanning Responses . | . . . Cargo Convoy Interrupts . | . . . Stealth | -11 -10 -10 --------- Run | Scr Mat Min Distress Signals . | . . . Communications Jammed . | . . . Distress Signals . | . . . Times Spotted 24 | . 8 16 Peak Tracking Total 4 | . 4 4 Tactical Retreats . | . . . Traps | -11 -10 -10 ------- Run | Scr Mat Min Traps Triggered . | . . . Indirectly . | . . . Trap Hack Attempts . | . . . Triggered . | . . . Disarmed . | . . . Reprogrammed 1 | . 1 . Reused . | . . . Traps Extracted . | . . . Installed . | . . . Triggered . | . . . Machines | -11 -10 -10 ---------- Run | Scr Mat Min Machines Disabled . | . . . Max in Single Turn . | . . . Machines Sabotaged . | . . . Garrisons Compromised . | . . . Overloaded Fab Kills . | . . . Hacking | -11 -10 -10 --------- Run | Scr Mat Min Machines Accessed 5 | . 5 . Terminals 5 | . 5 . Fabricators . | . . . Repair Stations . | . . . Recycling Units . | . . . Scanalyzers . | . . . Garrison Access . | . . . Total Hacks 10 | . 10 . Successful 6 | . 6 . Failed 4 | . 4 . Catastrophic 1 | . 1 . Database Lockouts . | . . . Manual . | . . . Terminals 10 | . 10 . Fabricators . | . . . Repair Stations . | . . . Recycling Units . | . . . Scanalyzers . | . . . Garrison Access . | . . . Terminal Hacks 6 | . 6 . Prototype ID Bank 2 | . 2 . Branch Access Points 1 | . 1 . Alert Level 1 | . 1 . Reprogram Traps 1 | . 1 . Recall Reinforcements 1 | . 1 . Fabricator Hacks . | . . . Repair Station Hacks . | . . . Recycling Unit Hacks . | . . . Scanalyzer . | . . . Garrison Access Hacks . | . . . Unauthorized Hacks . | . . . Terminals . | . . . Fabricators . | . . . Repair Stations . | . . . Recycling Units . | . . . Scanalyzers . | . . . Garrison Access . | . . . Data Cores Recovered . | . . . Used . | . . . Hacking Detections 5 | . 5 . Full Trace Events . | . . . Feedback Events . | . . . Feedback Blocked . | . . . Robot Schematics Acquired . | . . . Robots Built . | . . . Authchips . | . . . Time . | . . . Total Robot Build Rating . | . . . Part Schematics Acquired . | . . . Parts Built . | . . . Authchips . | . . . Time . | . . . Total Part Build Rating . | . . . Parts Repaired . | . . . Time . | . . . Parts Recycled . | . . . Recycled Matter . | . . . Retrieved Matter . | . . . Retrieved Components . | . . . Parts Scanalyzed . | . . . Part Schematics Acquired . | . . . Parts Damaged . | . . . Bothacking | -11 -10 -10 ------------ Run | Scr Mat Min Used RIF Installer . | . . . Robots Hacked 4 | . 2 2 Non-combat 1 | . 1 . Combat 3 | . 1 2 Robot Hacks Applied 5 | . 3 2 map_route 1 | . 1 . mark_security 1 | . 1 . find_shortcuts 3 | . 1 2 Relay Couplers Released . | . . . Fabnet Peak Effective % . | . . . Robots Rewired . | . . . Allies Hacked . | . . . Hacks Repelled . | . . . Allies | -11 -10 -10 -------- Run | Scr Mat Min Total Allies . | . . . Largest Group . | . . . Highest-Rated Group . | . . . Highest-Rated Ally . | . . . Total Orders . | . . . Ally Attacks . | . . . Total Damage . | . . . Kills . | . . . Allies Corrupted . | . . . Allies Melted . | . . . Intel | -11 -10 -10 ------- Run | Scr Mat Min Robot Analysis Total 4 | 1 2 1 Derelict Logs Recovered 1 | . . 1 Drone Launches . | . . . Drone Recoveries . | . . . Exploration | -11 -10 -10 ------------- Run | Scr Mat Min Turns Passed 310 | 7 107 196 Spaces Moved 353 | 11 177 165 Core 8 | 5 . 3 Treads . | . . . Legs 93 | . . 93 Wheels 81 | 6 61 14 Hover 28 | . 28 . Flight 143 | . 88 55 Fastest Speed 37 | 50 37 37 Average Speed 70 | 66 54 87 Slowest Speed 120 | 80 80 120 Overloaded Moves . | . . . Propulsion Burnouts . | . . . Robots Hopped 3 | . 3 . Cave-ins Triggered . | . . . Exploration Rate (%) 27 | 2 49 31 Regions Visited 2 Branch Regions 1 Pre-discovered Areas . | . . . Known Exits Taken 1 | . 1 . Unknown Exits Taken 1 | 1 . . Scrap Searched . | . . . Spaces Dug . | . . . Terrain Destroyed 1 | . . 1 Melee . | . . . Projectile 1 | . . 1 AOE . | . . . Terrain Rammed . | . . . Walls Destroyed . | . . . Machines Disabled . | . . . Actions | -11 -10 -10 --------- Run | Scr Mat Min Total 387 | 10 179 198 Wait 11 | . 1 10 Move 345 | 10 170 165 Hop 3 | . 3 . Pick Up . | . . . Fast Attach . | . . . Attach . | . . . Detach . | . . . Swap . | . . . Drop . | . . . Fire 21 | . 5 16 Melee . | . . . Ram 7 | . . 7 Kick . | . . . Crush . | . . . Escape Stasis . | . . . Rewire . | . . . Trap . | . . . Miscellaneous . | . . . Route ------- -11/Scrapyard -10/Materials -10/Mines History --------- Turn | Location | Event 1 | -11/Scrapyard | Discovered new exit (range 2) 8 | -11/Scrapyard | Entered Materials 109 | -10/Materials | Identified exit to Mines 115 | -10/Materials | Entered Mines 150 | -10/Mines | Learned 4 Materials zone layouts 158 | -10/Mines | Met a Derelict bent on vengeance 295 | -10/Mines | Core integrity fell below 50% 308 | -10/Mines | Core integrity fell below 20% 311 | -10/Mines | Destroyed by S-10 Pest with Light Assault Rifle Last Messages --------------- 00150_ Acquired derelict log, extracted data. Data stored: Materials zone layouts (x4). 00162_ Released control of S-10 Pest. 00163_ Took control of G-47 Trooper. 00163_ Extracted analysis data for G-47 Trooper. 00164_ S-10 Pest destroyed. 00168_ G-34 Mercenary suffers critical hit (Burn). 00172_ G-34 Mercenary destroyed. 00284_ Released control of G-47 Trooper. 00284_ Slammed into T-07 Excavator. 00284_ Destabilizing: System corrupted (+2). 00285_ Took control of T-07 Excavator. 00302_ Mining Laser destroyed. 00305_ Slammed into G-47 Trooper. 00308_ Destabilizing: System corrupted (+2). 00309_ Slammed into G-47 Trooper. 00309_ Destabilizing: System interference. 00309_ Seismic Detector temporarily disabled. 00310_ Lgt. Ion Engine destroyed. 00310_ Slammed into G-47 Trooper. Map ----- +----------------------------------------------------+ | | | | | | | | | | | | | | | | | | | | | | | | | | | ?????????????????????#???????????????????????? | | ?????????????????????????????????????????????? | | ?????????????????????????####????????????????? | | ???????????????????????## ##???????????????? | | ???????????????#??????## ???????????????? | | ?????????????????????## #????? ?????????? | | ?????????????????????# ##??????????????? | | ????????????????????## ###????????????? | | ???????????????????## #????????????? | | ????????????????#??# ?????????????? | | ??????????????????? ? s ???????????????? | | ????????????????????#?# sg ##?????#???####??? | | ??????????? ??????????#;st%#??????????## ##?? | | ??????????????????????##% ##??????????# #?? | | ???????????????????????## #??????????## #?? | | ????????????????????????# #####??????# #?? | | ??????????????????????#?# #????#?# ##?? | | ????????????????????????##### #?????## ##??? | | ????????????????? ??????????# #?????# #???? | | ????????????????????#???????# #????## ##???? | | ???????????????????????###### ###### = #????? | | ????????????????????# =#????? | | ???????????????????????############ #????? | | ??????????????????????????????????## #????? | | ??????????????????????#????????????### #????? | | ????????????????????????#????????????# #????? | | ??????????????????????????????????#### #????? | | ????????????????????????????#?????# #????? | | ??????????????????????????????????# #????? | | ??????????????????????????####??### ####????? | | ??????????????????????????# ### #???????? | | ??????????????????????????# ##??????? | | ??????????????????????????## #####??? | | ???????????????????????????#### #??? | | ??????????????????????????????## #??? | | ???????????????????????????????# #??? | | ???????????????????????????????## ## ####??? | +----------------------------------------------------+ Best States ------------- Heat Dissipation 40 Energy Generation 19 Energy Capacity 110 Matter Stores 98 Matter Capacity 100 Sight Range 18 Robot Scan Range 14 Terrain Scan Range 16 Terrain Scan Density 10 Evasion (%) 62 Item Schematics ----------------- None Robot Schematics ------------------ None Fabricated ------------ Nothing Alien Tech Used ----------------- None Achievements -------------- None Challenges ------------ None Polymind | -11 -10 -10 ---------- Run | Scr Mat Min Robots Controlled 6 | 1 2 3 Combat Hostiles 3 | . 1 2 Allies . | . . . Classes Controlled 4 | 1 2 1 Average Host Suspicion 83 | . 59 98 Unsuspicious Activity 2 | 2 . . Returns to Shadow . | . . . Fuzzy Dispatches . | . . . Protomatter Created 12 | . 3 9 Used 64 | 5 18 41 Decayed . | . . . Highest Spend 30 | 5 12 30 Top 5 Hosts by Kills: S-10 Pest (-10/Mines: 2) G-47 Trooper (-10/Mines: 2) S-10 Pest (-10/Materials: 1) Game ------ Seed ReflectiveWeightCorpse Manual? 0 Play Time 00:07:12 Cumulative 116.6 hours Start 2022.12.24 @ 19:55:02 End 2022.12.24 @ 19:59:59 Sessions 1 Manual Loads 0 Difficulty Rogue Special Mode Winter2022/Polymind Game No. 113 Rogue 113 Adventurer 0 Explorer 0 Win Type - Total 2 Types 0/0/1/1/0/0/0/0/0 Lore% 69 Gallery% 55 Achievement% 51 Wizard Run 0 Options --------- ASCII 0 Keyboard 0 Movement Numpad Keybinds 0 Fullscreen 2 Font 18/SmallcapsGlow Map View 76x50 Tactical HUD 1 Map Filters NONE Filters NONE Steam 1 RUN: fed8a0b2-e566-4343-af16-2736ee871457